fUST/lending_fUST_20240918
["ID","MTS","AMOUNT","RATE_DAILY","PERIOD"]
[338446182,1726643458608,-2586.7,0.00019178,2]
[338446183,1726643458617,-500.0,0.00019178,2]
[338446184,1726643458626,-500.0,0.00019178,2]
[338446185,1726643458636,-2273.45,0.00019178,2]
[338446186,1726643458646,-1646.09,0.00019178,2]
[338446187,1726643458656,-500.0,0.00019178,2]
[338446188,1726643458668,-500.0,0.00019178,2]
[338446189,1726643458678,-1938.53,0.00019178,2]
[338446190,1726643458687,-1059.28,0.00019178,2]
[338446191,1726643458697,-500.0,0.00019178,2]
[338446192,1726643458707,-930.6,0.00019178,2]
[338446193,1726643458716,-821.78,0.00019178,2]
[338446194,1726643458726,-1417.44,0.00019178,2]
[338446195,1726643458735,-595.70979987,0.00019178,2]
[338446196,1726643458748,-500.0,0.00019178,2]
[338446197,1726643458760,-500.0,0.00019178,2]
[338446198,1726643458770,-500.0,0.00019178,2]
[338446199,1726643458780,-724.4,0.00019178,2]
[338446200,1726643458790,-735.01,0.00019178,2]
[338446201,1726643458800,-500.0,0.00019178,2]
[338446202,1726643458810,-921.87,0.00019178,2]
[338446203,1726643458820,-500.0,0.00019178,2]
[338446204,1726643458829,-500.0,0.00019178,2]
[338446205,1726643458839,-2155.85,0.00019178,2]
[338446206,1726643458849,-2444.55,0.00019178,2]
[338446207,1726643458858,-500.0,0.00019178,2]
[338446208,1726643458867,-3388.1,0.00019178,2]
[338446209,1726643458876,-500.0,0.00019178,2]
[338446210,1726643458886,-500.0,0.00019178,2]
[338446211,1726643458896,-1573.470296,0.00019178,2]
[338446212,1726643458905,-167.771678,0.00019178,2]
[338446213,1726643458915,-150.112233,0.000192,2]
[338446214,1726643458937,-150.112233,0.000192,2]
[338446215,1726643458946,-2000.0,0.000194,2]
[338446216,1726643458956,-150.112237,0.000194,2]
[338446217,1726643458966,-409.5959062,0.00019418,2]
[338446218,1726643458975,-1072.35,0.00019441,2]
[338446219,1726643458985,-1072.35,0.00019441,2]
[338446220,1726643458994,-1072.35,0.00019441,2]
[338446221,1726643459004,-716.3,0.00019441,2]
[338446222,1726643459013,-716.3,0.00019441,2]
[338446223,1726643459023,-716.3,0.00019441,2]
[338446224,1726643459032,-4532.84383494,0.00019441,2]
[338446225,1726643459042,-391.66560742,0.00019441,2]
[338446226,1726643459052,-20053.15693236,0.00019442,2]
[338446227,1726643459061,-2989.61711502,0.00019443,2]
[338446228,1726643459070,-723.81658985,0.00019443,2]
[338446229,1726643459080,-8042.3946751,0.00019451,2]
[338446230,1726643459091,-1072.35,0.00019451,2]
[338446231,1726643459100,-1072.35,0.00019451,2]
[338446232,1726643459110,-1072.35,0.00019451,2]
[338446233,1726643459120,-1072.35,0.00019451,2]
[338446234,1726643459129,-1072.51136509,0.00019451,2]
[338446235,1726643459139,-716.3,0.00019451,2]
[338446236,1726643459148,-716.3,0.00019451,2]
[338446237,1726643459158,-716.3,0.00019451,2]
[338446238,1726643459174,-716.3,0.00019451,2]
[338446239,1726643459183,-716.43905274,0.00019451,2]
[338446240,1726643459194,-500.0,0.00019452,2]
[338446241,1726643459203,-500.0,0.00019452,2]
[338446242,1726643459214,-500.0,0.00019452,2]
[338446243,1726643459224,-500.0,0.00019452,2]
[338446244,1726643459233,-257.29842711,0.00019452,2]
[338446245,1726643459243,-500.0,0.00019452,2]
[338446246,1726643459252,-500.0,0.00019452,2]
[338446247,1726643459261,-1000.0,0.00019452,2]
[338446248,1726643459271,-527.35027438,0.00019452,2]
[338446249,1726643459280,-156.78977232,0.00019452,2]
[338446250,1726643459290,-500.0,0.00019452,2]
[338446251,1726643459299,-500.0,0.00019452,2]
[338446252,1726643459308,-500.0,0.00019452,2]
[338446253,1726643459318,-500.0,0.00019452,2]
[338446254,1726643459327,-632.08,0.00019452,2]
[338446255,1726643459337,-500.0,0.00019452,2]
[338446256,1726643459346,-565.35,0.00019452,2]
[338446257,1726643459355,-500.0,0.00019452,2]
[338446258,1726643459366,-500.0,0.00019452,2]
[338446259,1726643459376,-805.17,0.00019452,2]
[338446260,1726643459385,-500.0,0.00019452,2]
[338446261,1726643459394,-703.53,0.00019452,2]
[338446262,1726643459404,-500.0,0.00019452,2]
[338446263,1726643459413,-500.0,0.00019452,2]
[338446264,1726643459425,-500.0,0.00019452,2]
[338446265,1726643459435,-500.0,0.00019452,2]
[338446266,1726643459444,-553.89,0.00019452,2]
[338446267,1726643459453,-500.0,0.00019452,2]
[338446268,1726643459462,-151.0,0.00019452,2]
[338446269,1726643459472,-151.0,0.00019452,2]
[338446270,1726643459482,-151.0,0.00019452,2]
[338446271,1726643459491,-151.0,0.00019452,2]
[338446272,1726643459501,-500.0,0.00019452,2]
[338446273,1726643459510,-151.0,0.00019452,2]
[338446274,1726643459520,-156.839816,0.00019452,2]
[338446275,1726643459530,-500.0,0.00019452,2]
[338446276,1726643459539,-500.0,0.00019452,2]
[338446277,1726643459549,-573.87,0.00019452,2]
[338446278,1726643459558,-500.0,0.00019452,2]
[338446279,1726643459568,-500.0,0.00019452,2]
[338446280,1726643459577,-500.0,0.00019452,2]
[338446281,1726643459587,-1341.91,0.00019452,2]
[338446282,1726643459597,-824.12,0.00019452,2]
[338446283,1726643459606,-500.0,0.00019452,2]
[338446284,1726643459615,-545.24,0.00019452,2]
[338446285,1726643459625,-500.0,0.00019452,2]
[338446286,1726643459634,-500.0,0.00019452,2]
[338446287,1726643459644,-154.742121,0.00019452,2]
[338446288,1726643459654,-151.0,0.00019452,2]
[338446289,1726643459663,-151.0,0.00019452,2]
[338446290,1726643459674,-500.0,0.00019452,2]
[338446291,1726643459683,-500.0,0.00019452,2]
[338446292,1726643459693,-500.0,0.00019452,2]
[338446293,1726643459702,-500.0,0.00019452,2]
[338446294,1726643459712,-1246.0,0.00019452,2]
[338446295,1726643459721,-500.0,0.00019452,2]
[338446296,1726643459730,-279.5143847,0.00019452,2]
[338446297,1726643459740,-500.0,0.00019452,2]
[338446298,1726643459750,-342.58639172,0.00019452,2]
[338446299,1726643459760,-885.8,0.00019452,2]
[338446300,1726643459770,-500.0,0.00019452,2]
[338446301,1726643459779,-1666.22,0.00019452,2]
[338446302,1726643459790,-500.0,0.00019452,2]
[338446303,1726643459799,-500.0,0.00019452,2]
[338446304,1726643459809,-1476.75,0.00019452,2]
[338446305,1726643459818,-500.0,0.00019452,2]
[338446306,1726643459828,-500.0,0.00019452,2]
[338446307,1726643459837,-500.0,0.00019452,2]
[338446308,1726643459847,-523.14,0.00019452,2]
[338446309,1726643459857,-500.0,0.00019452,2]
[338446310,1726643459866,-500.0,0.00019452,2]
[338446311,1726643459877,-500.0,0.00019452,2]
[338446312,1726643459886,-500.0,0.00019452,2]
[338446313,1726643459896,-151.0,0.00019452,2]
[338446314,1726643459905,-548.06086789,0.00019452,2]
[338446315,1726643459915,-299.137519,0.00019452,2]
[338446316,1726643459929,-529.56,0.00019452,2]
[338446317,1726643459938,-500.0,0.00019452,2]
[338446318,1726643459947,-500.0,0.00019452,2]
[338446319,1726643459956,-500.0,0.00019452,2]
[338446320,1726643459965,-500.0,0.00019452,2]
[338446321,1726643459974,-938.77,0.00019452,2]
[338446322,1726643459983,-1577.25,0.00019452,2]
[338446323,1726643459992,-455.29247255,0.00019452,2]
[338446324,1726643460001,-500.0,0.00019452,2]
[338446325,1726643460010,-500.0,0.00019452,2]
[338446326,1726643460019,-500.0,0.00019452,2]
[338446327,1726643460028,-500.0,0.00019452,2]
[338446328,1726643460038,-340.34550784,0.00019452,2]
[338446329,1726643460047,-1119.41,0.00019452,2]
[338446330,1726643460057,-500.0,0.00019452,2]
[338446331,1726643460066,-500.0,0.00019452,2]
[338446332,1726643460075,-500.0,0.00019452,2]
[338446333,1726643460085,-1291.6,0.00019452,2]
[338446334,1726643460096,-500.0,0.00019452,2]
[338446335,1726643460106,-500.0,0.00019452,2]
[338446336,1726643460116,-500.0,0.00019452,2]
[338446337,1726643460126,-500.0,0.00019452,2]
[338446338,1726643460136,-1122.2,0.00019452,2]
[338446339,1726643460146,-500.0,0.00019452,2]
[338446340,1726643460156,-501.44365997,0.00019452,2]
[338446341,1726643460165,-500.0,0.00019452,2]
[338446342,1726643460305,-500.0,0.00019452,2]
[338446343,1726643460315,-886.679872,0.00019452,2]
[338446344,1726643460324,-886.679872,0.00019452,2]
[338446345,1726643460333,-500.0,0.00019452,2]
[338446346,1726643460342,-181.31,0.00019452,2]
[338446347,1726643460351,-886.679872,0.00019452,2]
[338446348,1726643460361,-500.0,0.00019452,2]
[338446349,1726643460370,-886.679872,0.00019452,2]
[338446350,1726643460380,-549.57,0.00019452,2]
[338446351,1726643460389,-500.0,0.00019452,2]
[338446352,1726643460398,-500.0,0.00019452,2]
[338446353,1726643460408,-500.0,0.00019452,2]
[338446354,1726643460419,-500.0,0.00019452,2]
[338446355,1726643460429,-500.0,0.00019452,2]
[338446356,1726643460439,-500.0,0.00019452,2]
[338446357,1726643460448,-607.19,0.00019452,2]
[338446358,1726643460458,-1683.57,0.00019452,2]
[338446359,1726643460467,-1584.62,0.00019452,2]
[338446360,1726643460477,-500.0,0.00019452,2]
[338446361,1726643460487,-500.0,0.00019452,2]
[338446362,1726643460496,-277.363101,0.00019452,2]
[338446363,1726643460506,-277.363101,0.00019452,2]
[338446364,1726643460515,-277.363101,0.00019452,2]
[338446365,1726643460524,-277.363101,0.00019452,2]
[338446366,1726643460533,-500.0,0.00019452,2]
[338446367,1726643460542,-1364.46,0.00019452,2]
[338446368,1726643460551,-500.0,0.00019452,2]
[338446369,1726643460561,-1199.35,0.00019452,2]
[338446370,1726643460571,-500.0,0.00019452,2]
[338446371,1726643460582,-500.0,0.00019452,2]
[338446372,1726643460594,-500.0,0.00019452,2]
[338446373,1726643460605,-500.0,0.00019452,2]
[338446374,1726643460616,-772.98,0.00019452,2]
[338446375,1726643460627,-500.0,0.00019452,2]
[338446376,1726643460638,-1707.57,0.00019452,2]
[338446377,1726643460649,-500.0,0.00019452,2]
[338446378,1726643460660,-151.0,0.00019452,2]
[338446379,1726643460673,-151.0,0.00019452,2]
[338446380,1726643460684,-2168.8,0.00019452,2]
[338446381,1726643460694,-875.03,0.00019452,2]
[338446382,1726643460704,-500.0,0.00019452,2]
[338446383,1726643460715,-1315.72,0.00019452,2]
[338446384,1726643460725,-2416.71,0.00019452,2]
[338446385,1726643460734,-2338.7,0.00019452,2]
[338446386,1726643460743,-540.85,0.00019452,2]
[338446387,1726643460756,-500.0,0.00019452,2]
[338446388,1726643460767,-500.0,0.00019452,2]
[338446389,1726643460778,-2029.63,0.00019452,2]
[338446390,1726643460787,-500.0,0.00019452,2]
[338446391,1726643460798,-628.47,0.00019452,2]
[338446392,1726643460809,-1325.82,0.00019452,2]
[338446393,1726643460819,-1006.61,0.00019452,2]
[338446394,1726643460830,-500.0,0.00019452,2]
[338446395,1726643460841,-500.0,0.00019452,2]
[338446396,1726643460850,-500.0,0.00019452,2]
[338446397,1726643460861,-500.0,0.00019452,2]
[338446398,1726643460871,-500.0,0.00019452,2]
[338446399,1726643460882,-735.43,0.00019452,2]
[338446400,1726643460892,-2596.4,0.00019452,2]
[338446401,1726643460902,-500.0,0.00019452,2]
[338446402,1726643460912,-500.0,0.00019452,2]
[338446403,1726643460923,-2693.11,0.00019452,2]
[338446404,1726643460932,-500.0,0.00019452,2]
[338446405,1726643460941,-500.0,0.00019452,2]
[338446406,1726643460951,-500.0,0.00019452,2]
[338446407,1726643460962,-500.0,0.00019452,2]
[338446408,1726643460972,-500.0,0.00019452,2]
[338446409,1726643460982,-3148.9,0.00019452,2]
[338446410,1726643460993,-500.0,0.00019452,2]
[338446411,1726643461004,-530.2,0.00019452,2]
[338446412,1726643461016,-506.85,0.00019452,2]
[338446413,1726643461027,-500.0,0.00019452,2]
[338446414,1726643461039,-491.48,0.00019452,2]
[338446415,1726643461049,-500.0,0.00019452,2]
[338446416,1726643461060,-500.0,0.00019452,2]
[338446417,1726643461070,-1202.17,0.00019452,2]
[338446418,1726643461081,-500.0,0.00019452,2]
[338446419,1726643461092,-526.64,0.00019452,2]
[338446420,1726643461103,-500.0,0.00019452,2]
[338446421,1726643461116,-500.0,0.00019452,2]
[338446422,1726643461131,-664.22,0.00019452,2]
[338446423,1726643461143,-500.0,0.00019452,2]
[338446424,1726643461155,-938.69,0.00019452,2]
[338446425,1726643461166,-500.84,0.00019452,2]
[338446426,1726643461181,-1466.0,0.00019452,2]
[338446427,1726643461192,-280.73227265,0.00019452,2]
[338446428,1726643461204,-500.0,0.00019452,2]
[338446429,1726643461216,-500.0,0.00019452,2]
[338446430,1726643461228,-500.0,0.00019452,2]
[338446431,1726643461240,-1534.35,0.00019452,2]
[338446432,1726643461250,-500.0,0.00019452,2]
[338446433,1726643461260,-500.0,0.00019452,2]
[338446434,1726643461270,-500.0,0.00019452,2]
[338446435,1726643461280,-547.8,0.00019452,2]
[338446436,1726643461292,-939.51,0.00019452,2]
[338446437,1726643461303,-1869.84,0.00019452,2]
[338446438,1726643461315,-151.0,0.00019452,2]
[338446439,1726643461326,-151.0,0.00019452,2]
[338446440,1726643461336,-988.0,0.00019452,2]
[338446441,1726643461346,-500.0,0.00019452,2]
[338446442,1726643461356,-500.0,0.00019452,2]
[338446443,1726643461366,-500.0,0.00019452,2]
[338446444,1726643461378,-500.0,0.00019452,2]
[338446445,1726643461387,-500.0,0.00019452,2]
[338446446,1726643461400,-569.92,0.00019452,2]
[338446447,1726643461410,-500.0,0.00019452,2]
[338446448,1726643461423,-507.05187652,0.00019452,2]
[338446449,1726643461433,-500.0,0.00019452,2]
[338446450,1726643461443,-500.0,0.00019452,2]
[338446451,1726643461453,-500.0,0.00019452,2]
[338446452,1726643461463,-500.0,0.00019452,2]
[338446453,1726643461473,-500.0,0.00019452,2]
[338446454,1726643461485,-2239.91,0.00019452,2]
[338446455,1726643461495,-185.979843,0.00019452,2]
[338446456,1726643461505,-185.979843,0.00019452,2]
[338446457,1726643461516,-496.18891021,0.00019452,2]
[338446458,1726643461526,-500.0,0.00019452,2]
[338446459,1726643461536,-500.0,0.00019452,2]
[338446460,1726643461547,-500.0,0.00019452,2]
[338446461,1726643461558,-185.979843,0.00019452,2]
[338446462,1726643461569,-793.47,0.00019452,2]
[338446463,1726643461580,-185.979843,0.00019452,2]
[338446464,1726643461592,-500.0,0.00019452,2]
[338446465,1726643461604,-3827.31,0.00019452,2]
[338446466,1726643461614,-1632.16,0.00019452,2]
[338446467,1726643461625,-500.0,0.00019452,2]
[338446468,1726643461635,-2354.33,0.00019452,2]
[338446469,1726643461646,-561.579837,0.00019452,2]
[338446470,1726643461655,-500.0,0.00019452,2]
[338446471,1726643461666,-500.0,0.00019452,2]
[338446472,1726643461676,-500.0,0.00019452,2]
[338446473,1726643461686,-500.0,0.00019452,2]
[338446474,1726643461697,-500.0,0.00019452,2]
[338446475,1726643461708,-2303.52,0.00019452,2]
[338446476,1726643461720,-500.0,0.00019452,2]
[338446477,1726643461736,-500.0,0.00019452,2]
[338446478,1726643461750,-500.0,0.00019452,2]
[338446479,1726643461762,-500.0,0.00019452,2]
[338446480,1726643461774,-827.44,0.00019452,2]
[338446481,1726643461787,-500.0,0.00019452,2]
[338446482,1726643461799,-521.37,0.00019452,2]
[338446483,1726643461811,-500.0,0.00019452,2]
[338446484,1726643461823,-500.0,0.00019452,2]
[338446485,1726643461836,-589.2542413,0.00019452,2]
[338446486,1726643461847,-1717.46,0.00019452,2]
[338446487,1726643461859,-500.0,0.00019452,2]
[338446488,1726643461871,-500.0,0.00019452,2]
[338446489,1726643461882,-500.0,0.00019452,2]
[338446490,1726643461893,-1263.69,0.00019452,2]
[338446491,1726643461903,-500.0,0.00019452,2]
[338446492,1726643461912,-500.0,0.00019452,2]
[338446493,1726643461923,-500.0,0.00019452,2]
[338446494,1726643461933,-552.65246096,0.00019452,2]
[338446495,1726643461943,-1747.51,0.00019452,2]
[338446496,1726643461952,-500.0,0.00019452,2]
[338446497,1726643461962,-500.0,0.00019452,2]
[338446498,1726643461971,-500.0,0.00019452,2]
[338446499,1726643461980,-1128.52,0.00019452,2]
[338446500,1726643461990,-500.0,0.00019452,2]
[338446501,1726643462000,-500.0,0.00019452,2]
[338446502,1726643462010,-500.0,0.00019452,2]
[338446503,1726643462019,-500.0,0.00019452,2]
[338446504,1726643462030,-741.79,0.00019452,2]
[338446505,1726643462039,-500.0,0.00019452,2]
[338446506,1726643462049,-500.0,0.00019452,2]
[338446507,1726643462059,-500.0,0.00019452,2]
[338446508,1726643462069,-1176.41,0.00019452,2]
[338446509,1726643462078,-500.0,0.00019452,2]
[338446510,1726643462089,-2316.71,0.00019452,2]
[338446511,1726643462098,-1206.7,0.00019452,2]
[338446512,1726643462108,-500.0,0.00019452,2]
[338446513,1726643462118,-500.0,0.00019452,2]
[338446514,1726643462127,-613.0,0.00019452,2]
[338446515,1726643462138,-500.0,0.00019452,2]
[338446516,1726643462148,-500.0,0.00019452,2]
[338446517,1726643462158,-500.0,0.00019452,2]
[338446518,1726643462168,-500.0,0.00019452,2]
[338446519,1726643462177,-500.0,0.00019452,2]
[338446520,1726643462187,-596.02,0.00019452,2]
[338446521,1726643462196,-500.0,0.00019452,2]
[338446522,1726643462209,-1109.6,0.00019452,2]
[338446523,1726643462220,-500.0,0.00019452,2]
[338446524,1726643462231,-582.14499176,0.00019452,2]
[338446525,1726643462243,-500.0,0.00019452,2]
[338446526,1726643462256,-500.0,0.00019452,2]
[338446527,1726643462267,-500.0,0.00019452,2]
[338446528,1726643462279,-2905.9,0.00019452,2]
[338446529,1726643462288,-500.0,0.00019452,2]
[338446530,1726643462299,-500.0,0.00019452,2]
[338446531,1726643462310,-836.53,0.00019452,2]
[338446532,1726643462321,-500.0,0.00019452,2]
[338446533,1726643462331,-565.77,0.00019452,2]
[338446534,1726643462342,-500.0,0.00019452,2]
[338446535,1726643462354,-500.0,0.00019452,2]
[338446536,1726643462366,-500.0,0.00019452,2]
[338446537,1726643462378,-688.09,0.00019452,2]
[338446538,1726643462389,-675.22,0.00019452,2]
[338446539,1726643462400,-500.0,0.00019452,2]
[338446540,1726643462411,-500.0,0.00019452,2]
[338446541,1726643462569,-1567.22,0.00019452,2]
[338446542,1726643462580,-500.0,0.00019452,2]
[338446543,1726643462591,-500.0,0.00019452,2]
[338446544,1726643462601,-500.0,0.00019452,2]
[338446545,1726643462611,-500.0,0.00019452,2]
[338446546,1726643462622,-500.0,0.00019452,2]
[338446547,1726643462633,-903.73,0.00019452,2]
[338446548,1726643462645,-500.0,0.00019452,2]
[338446549,1726643462655,-533.71,0.00019452,2]
[338446550,1726643462665,-500.0,0.00019452,2]
[338446551,1726643462676,-1809.63,0.00019452,2]
[338446552,1726643462686,-1418.38,0.00019452,2]
[338446553,1726643462698,-505.49503684,0.00019452,2]
[338446554,1726643462710,-568.68349003,0.00019452,2]
[338446555,1726643462721,-500.0,0.00019452,2]
[338446556,1726643462731,-1655.46,0.00019452,2]
[338446557,1726643462753,-413.38948003,0.00019452,2]
[338446558,1726643463421,-500.0,0.00019178,2]
[338446559,1726643463431,-500.0,0.00019178,2]
[338446560,1726643463442,-598.82,0.00019178,2]
[338446561,1726643463453,-500.0,0.00019178,2]
[338446562,1726643463463,-1466.34051997,0.00019452,2]
[338446563,1726643463475,-1517.19,0.00019452,2]
[338446564,1726643463485,-500.0,0.00019452,2]
[338446565,1726643463496,-500.0,0.00019452,2]
[338446566,1726643463506,-500.0,0.00019452,2]
[338446567,1726643463519,-500.0,0.00019452,2]
[338446568,1726643463529,-903.37,0.00019452,2]
[338446569,1726643463539,-190.728897,0.00019452,2]
[338446570,1726643463551,-190.728897,0.00019452,2]
[338446571,1726643463561,-978.91,0.00019452,2]
[338446572,1726643463572,-708.24429964,0.00019452,2]
[338446573,1726643463591,-1416.99570036,0.00019452,2]
[338446574,1726643463603,-552.15953834,0.00019452,2]
[338446575,1726643463615,-1556.63046166,0.00019452,2]
[338446576,1726643463627,-500.0,0.00019452,2]
[338446577,1726643463658,-632.97,0.00019452,2]
[338446578,1726643463681,-190.728897,0.00019452,2]
[338446579,1726643463702,-190.728897,0.00019452,2]
[338446580,1726643463724,-1384.23,0.00019452,2]
[338446581,1726643463746,-567.2668096,0.00019452,2]
[338446582,1726643463770,-500.0,0.00019452,2]
[338446583,1726643463789,-960.43,0.00019452,2]
[338446584,1726643463811,-500.0,0.00019452,2]
[338446585,1726643463831,-142.7981583,0.00019452,2]
[338446586,1726643463867,-357.2018417,0.00019452,2]
[338446587,1726643463880,-539.65,0.00019452,2]
[338446588,1726643463900,-2460.21,0.00019452,2]
[338446589,1726643463916,-543.53,0.00019452,2]
[338446590,1726643463937,-500.0,0.00019452,2]
[338446591,1726643463951,-2289.77,0.00019452,2]
[338446592,1726643463984,-1252.14,0.00019452,2]
[338446593,1726643464004,-500.0,0.00019452,2]
[338446594,1726643464024,-1042.79,0.00019452,2]
[338446595,1726643464042,-500.0,0.00019452,2]
[338446596,1726643464060,-2376.65,0.00019452,2]
[338446597,1726643464077,-742.81,0.00019452,2]
[338446598,1726643464094,-178.69640053,0.00019452,2]
[338446599,1726643464111,-1043.4,0.00019452,2]
[338446600,1726643464128,-500.0,0.00019452,2]
[338446601,1726643464145,-500.0,0.00019452,2]
[338446602,1726643464161,-500.0,0.00019452,2]
[338446603,1726643464180,-500.0,0.00019452,2]
[338446604,1726643464197,-1616.74730577,0.00019452,2]
[338446605,1726643464216,-739.97269423,0.00019452,2]
[338446606,1726643464231,-56.8435536,0.00019452,2]
[338446607,1726643465914,-261.81,0.00019145,2]
[338447361,1726643607263,10000.0,0.00024,120]
[338447362,1726643608137,10000.0,0.00024,120]
[338447363,1726643609130,10000.0,0.00024,120]
[338447364,1726643609713,10000.0,0.00024,120]
[338447365,1726643610102,10000.0,0.00024,120]
[338447366,1726643610571,10000.0,0.00024,120]
[338447367,1726643610871,10000.0,0.00024,120]
[338447368,1726643611230,10000.0,0.00024,120]
[338447369,1726643611615,10000.0,0.00024,120]
[338447370,1726643612299,10000.0,0.00024,120]
[338447371,1726643612384,10000.0,0.00024,120]
[338447372,1726643612743,10000.0,0.00024,120]
[338447373,1726643613387,10000.0,0.00024,120]
[338447374,1726643613513,10000.0,0.00024,120]
[338447375,1726643613917,10000.0,0.00024,120]
[338447376,1726643614311,10000.0,0.00024,120]
[338447377,1726643614703,10000.0,0.00024,120]
[338447378,1726643615085,10000.0,0.00024,120]
[338447379,1726643615473,10000.0,0.00024,120]
[338447380,1726643649866,5957.58,0.00024,120]
[338447382,1726643682420,500.0,0.00024,120]
[338447383,1726643683399,500.0,0.00024,120]
[338447384,1726643683772,631.13,0.00024,120]
[338447385,1726643684255,11915.95,0.00024,120]
[338447386,1726643686411,1522.63,0.00024,120]
[338447387,1726643686820,1014.07,0.00024,120]
[338447388,1726643686972,500.0,0.00024,120]
[338447389,1726643688060,500.0,0.00024,120]
[338447390,1726643692672,2311.88,0.00024,120]
[338447391,1726643692771,500.0,0.00024,120]
[338447392,1726643692847,500.0,0.00024,120]
[338447393,1726643693603,573.29967654,0.00024,120]
[338447394,1726643693788,500.0,0.00024,120]
[338447395,1726643696800,500.0,0.00024,120]
[338447396,1726643697588,500.74867158,0.00024,120]
[338447397,1726643699140,1706.92,0.00024,120]
[338447398,1726643699558,2289.98,0.00024,120]
[338447399,1726643699882,500.0,0.00024,120]
[338447400,1726643700336,500.0,0.00024,120]
[338447401,1726643700783,1487.75,0.00024,120]
[338447402,1726643701062,500.0,0.00024,120]
[338447403,1726643701622,500.0,0.00024,120]
[338447404,1726643702751,901.7,0.00024,120]
[338447405,1726643703601,503.93126503,0.00024,120]
[338447406,1726643705874,802.98,0.00024,120]
[338447407,1726643707423,500.0,0.00024,120]
[338447408,1726643708283,547.8,0.00024,120]
[338447409,1726643708667,744.51,0.00024,120]
[338447410,1726643710849,621.86506849,0.00024,120]
[338447411,1726643712244,500.0,0.00024,120]
[338447412,1726643712466,11435.88,0.00024,120]
[338447413,1726643712501,500.0,0.00024,120]
[338447414,1726643712844,500.0,0.00024,120]
[338447415,1726643713004,500.0,0.00024,120]
[338447416,1726643713834,560.7,0.00024,120]
[338447417,1726643715216,1109.6,0.00024,120]
[338447418,1726643715266,500.0,0.00024,120]
[338447419,1726643716463,3017.88,0.00024,120]
[338447420,1726643716503,500.0,0.00024,120]
[338447421,1726643718077,500.0,0.00024,120]
[338447422,1726643718953,613.0,0.00024,120]
[338447423,1726643719134,2304.27,0.00024,120]
[338447424,1726643720109,500.0,0.00024,120]
[338447425,1726643723447,1560.96,0.00024,120]
[338447426,1726643723889,1110.39,0.00024,120]
[338447427,1726643723990,500.0,0.00024,120]
[338447428,1726643724132,500.0,0.00024,120]
[338447429,1726643724381,500.0,0.00024,120]
[338447430,1726643724634,377.3912684,0.00024,120]
[338447431,1726643724966,174.24022888,0.00024,120]
[338447432,1726643725064,3070.7,0.00024,120]
[338447433,1726643725409,500.0,0.00024,120]
[338447434,1726643725902,500.0,0.00024,120]
[338447435,1726643726615,500.0,0.00024,120]